bitfinex-derivatives/quotes_ETHF0:USTF0_20250405
["timestamp","ask_amount","ask_price","bid_price","bid_amount"]
[1743876364115,2.94507,1791.1,1791.0,1.29509673]
[1743876364316,2.94507,1791.1,1791.0,3.47029673]
[1743876365114,2.94507,1791.1,1791.0,2.69895559]
[1743876365421,2.94507,1791.1,1791.0,1.29505559]
[1743876367323,2.17357,1791.1,1791.0,1.29510968]
[1743876367629,2.17357,1791.1,1791.0,4.26080968]
[1743876369021,2.17353,1791.1,1791.0,5.04278968]
[1743876369218,2.17353,1791.1,1791.0,4.26066888]
[1743876369421,2.27771,1791.2,1791.0,4.26066888]
[1743876369623,1.54461,1791.2,1791.1,2.76186888]
[1743876370529,1.54461,1791.2,1791.1,6.31686888]
[1743876370827,4.68931,1791.4,1791.2,0.78189]
[1743876371125,4.68931,1791.4,1791.3,2.01286888]
[1743876371325,4.68931,1791.4,1791.3,2.76116888]
[1743876371526,6.17941,1791.4,1791.3,4.22806888]
[1743876372227,5.47971,1791.4,1791.3,4.22806888]
[1743876372628,3.2078,1791.4,1791.3,4.22806888]
[1743876372934,2.2255,1791.7,1791.5,0.78173]
[1743876373134,3.00717,1791.7,1791.6,3.76530573]
[1743876373631,0.78167,1791.8,1791.6,4.54702573]
[1743876373934,0.78167,1791.8,1791.7,2.25430573]
[1743876374233,3.2078,1792.2,1791.7,9.55342175]
[1743876374428,0.78154,1792.0,1791.8,2.78562175]
[1743876374626,2.24889,1791.9,1791.7,3.56]
[1743876374827,2.97596,1791.8,1791.6,6.4815]
[1743876375037,1.4983,1791.7,1791.6,6.4815]
[1743876375237,1.4983,1791.7,1791.6,8.55505062]
[1743876375832,2.27997,1791.7,1791.6,7.00613062]
[1743876376023,2.27997,1791.7,1791.6,6.26233062]
[1743876376227,1.4983,1791.7,1791.6,7.04405062]
[1743876376432,2.27997,1791.7,1791.6,6.26233062]
[1743876376625,1.4983,1791.7,1791.6,6.26233062]
[1743876377129,1.4983,1791.7,1791.6,6.51275409]
[1743876377329,1.4983,1791.7,1791.6,5.73103409]
[1743876377836,2.27997,1791.7,1791.6,4.33353409]
[1743876378037,0.78172,1791.6,1791.5,4.66498714]
[1743876378337,3.09042,1791.6,1791.5,0.76795796]
[1743876379430,2.3087,1791.6,1791.5,1.54971796]
[1743876379635,2.3087,1791.6,1791.5,3.52906855]
[1743876379830,1.47766,1791.8,1791.6,0.78168]
[1743876380132,3.78636,1791.8,1791.7,0.75933927]
[1743876381437,2.2382,1791.8,1791.7,1.54100927]
[1743876381636,2.2382,1791.8,1791.7,4.54780927]
[1743876382534,1.49166,1792.0,1791.8,0.78162]
[1743876382735,2.98466,1792.0,1791.8,1.5305]
[1743876382936,1.493,1792.0,1791.9,1.54019928]
[1743876383424,1.493,1792.0,1791.9,0.78159]
[1743876383629,1.493,1792.0,1791.9,1.53977777]
[1743876383830,2.24978,1792.2,1792.0,0.78154]
[1743876384030,2.24978,1792.2,1792.0,2.93514]
[1743876384330,2.24978,1792.2,1792.0,6.51414]
[1743876384528,2.24978,1792.2,1792.1,1.4515]
[1743876385136,1.4844,1792.3,1792.1,2.233]
[1743876385329,2.99073,1792.3,1792.1,2.9437]
[1743876385530,2.99073,1792.3,1792.2,1.4515]
[1743876386530,0.78143,1792.3,1792.2,1.4515]
[1743876387431,2.17313,1792.3,1792.2,1.4515]
[1743876389440,0.78145,1792.2,1792.1,1.6595]
[1743876389641,2.17315,1792.2,1792.1,1.6595]
[1743876389833,2.17315,1792.2,1792.1,2.1315]
[1743876390335,0.78154,1792.0,1791.9,3.98934]
[1743876390542,0.78154,1792.0,1791.9,7.54132954]
[1743876390741,0.78159,1791.9,1791.8,3.8543]
[1743876391041,1.3977,1791.9,1791.7,8.2739]
[1743876391342,1.48933,1791.8,1791.7,8.2739]
[1743876391545,1.48933,1791.8,1791.7,10.53496278]
[1743876392138,0.7077,1791.8,1791.7,11.31663278]
[1743876392539,2.88703,1791.8,1791.7,10.53496278]
[1743876392739,2.88703,1791.8,1791.7,7.5438794]
[1743876392942,2.88703,1791.8,1791.7,3.9648794]
[1743876393237,2.88703,1791.8,1791.7,3.2078]
[1743876394145,2.88703,1791.8,1791.7,3.9653568]
[1743876394344,2.88703,1791.8,1791.7,3.2078]
[1743876394839,2.88703,1791.8,1791.7,3.96536435]
[1743876395839,2.88703,1791.8,1791.7,0.75756435]
[1743876396347,0.78167,1791.7,1791.6,1.2256]
[1743876396535,2.94867,1791.7,1791.6,1.98372748]
[1743876396740,2.94867,1791.7,1791.6,1.03452748]
[1743876397037,2.94867,1791.7,1791.6,1.0345311]
[1743876397942,2.167,1791.7,1791.6,1.8162511]
[1743876398141,2.167,1791.7,1791.6,3.0413511]
[1743876398741,1.48933,1791.8,1791.6,3.0413211]
[1743876398948,1.48933,1791.8,1791.7,2.97606729]
[1743876399349,1.48933,1791.8,1791.7,3.75773729]
[1743876399645,1.48933,1791.8,1791.7,2.97606729]
[1743876400244,2.98453,1791.8,1791.7,2.97606729]
[1743876400948,2.98453,1791.8,1791.7,2.97692961]
[1743876402147,2.98453,1791.8,1791.7,3.5080351]
[1743876403444,2.98453,1791.8,1791.7,4.29054241]
[1743876403649,0.78163,1791.8,1791.7,3.50887241]
[1743876405051,2.2089,1791.9,1791.7,5.00651241]
[1743876405245,0.78163,1791.8,1791.7,3.71494]
[1743876405443,0.78163,1791.8,1791.7,5.00663083]
[1743876405644,0.78163,1791.8,1791.7,1.29169083]
[1743876405845,2.27473,1791.8,1791.7,0.76045355]
[1743876410752,0.78167,1791.7,1791.6,6.67872]
[1743876410953,2.27475,1791.8,1791.6,7.69446517]
[1743876411152,2.27475,1791.8,1791.7,1.29218517]
[1743876411352,2.27475,1791.8,1791.7,0.76074314]
[1743876411953,2.27475,1791.8,1791.7,1.29222078]
[1743876412755,2.27475,1791.8,1791.7,2.07389078]
[1743876412959,1.4931,1791.8,1791.7,5.04679078]
[1743876413445,2.27473,1791.8,1791.7,4.26512078]
[1743876414359,2.27473,1791.8,1791.7,4.2651177]
[1743876415259,2.27473,1791.8,1791.7,3.5331177]
[1743876415556,2.27473,1791.8,1791.7,1.2922177]
[1743876416157,2.27473,1791.8,1791.7,1.29241908]
[1743876418051,1.4931,1791.8,1791.7,1.2932194]
[1743876418252,2.27476,1791.8,1791.7,1.2932194]
[1743876420054,2.27476,1791.8,1791.7,0.76135144]
[1743876420358,2.27476,1791.8,1791.7,1.29375183]
[1743876422360,2.27476,1791.8,1791.7,1.29421469]
[1743876426467,2.27476,1791.8,1791.7,1.29571894]
[1743876428970,7.98256,1791.8,1791.7,0.76285569]
[1743876429475,11.55156,1791.8,1791.7,0.76285569]
[1743876430177,9.05156,1791.8,1791.7,0.76285569]
[1743876432269,5.48256,1791.8,1791.7,0.76285569]
[1743876433775,0.78167,1791.7,1791.6,1.2262]
[1743876433975,2.87457,1791.7,1791.6,2.52078153]
[1743876435574,2.87457,1791.7,1791.6,2.5207609]
[1743876437277,2.87457,1791.7,1791.6,1.98826101]
[1743876438370,2.87457,1791.7,1791.6,2.5206004]
[1743876438978,2.87457,1791.7,1791.6,2.52060823]
[1743876439281,2.87457,1791.7,1791.6,1.98833117]
[1743876441079,2.87457,1791.7,1791.6,1.98830903]
[1743876444675,2.87457,1791.7,1791.6,1.9881093]
[1743876446079,2.87457,1791.7,1791.6,1.2262]
[1743876446280,2.87457,1791.7,1791.6,1.98821054]
[1743876446586,2.87457,1791.7,1791.6,1.2262]
[1743876446778,2.87457,1791.7,1791.6,1.98820318]
[1743876447084,2.87457,1791.7,1791.6,1.98820574]
[1743876447584,2.87457,1791.7,1791.6,1.98823773]
[1743876447884,6.08237,1791.7,1791.6,1.98823773]
[1743876450881,6.08237,1791.7,1791.6,0.0754]
[1743876451285,0.78172,1791.6,1791.5,0.00838714]
[1743876451480,3.03682,1791.6,1791.5,0.00838714]
[1743876453587,6.24462,1791.6,1791.5,0.00838714]
[1743876469407,9.79262,1791.6,1791.5,0.00838714]
[1743876472408,6.24462,1791.6,1791.5,0.00838714]
[1743876472607,9.79162,1791.6,1791.5,0.00838714]
[1743876473905,9.79162,1791.6,1791.5,7.14e-06]
[1743876477612,6.58382,1791.6,1791.5,7.14e-06]
[1743876477799,9.79162,1791.6,1791.5,7.14e-06]
[1743876478309,6.58382,1791.6,1791.5,7.14e-06]
[1743876478511,9.79162,1791.6,1791.5,7.14e-06]
[1743876479409,9.79162,1791.6,1791.5,0.76384775]
[1743876479609,9.79162,1791.6,1791.5,0.76383702]
[1743876482806,0.7818,1791.4,1791.3,1.5131]
[1743876483010,3.9896,1791.4,1791.3,1.5131]
[1743876484210,4.43881577,1791.4,1791.3,1.5131]
[1743876484512,3.9896,1791.4,1791.3,1.5131]
[1743876486907,3.9896,1791.4,1791.3,4.54691577]
[1743876487212,0.7818,1791.4,1791.3,4.54691577]
[1743876488913,0.7818,1791.4,1791.3,4.54655216]
[1743876491614,0.7818,1791.4,1791.3,2.04655216]
[1743876492413,0.7818,1791.4,1791.3,2.04635553]
[1743876493712,0.7818,1791.4,1791.3,4.54635553]
[1743876494812,0.7818,1791.4,1791.3,5.30387984]
[1743876496116,0.7818,1791.4,1791.3,5.3036638]
[1743876496317,0.7818,1791.4,1791.3,2.8036638]
[1743876497916,0.7818,1791.4,1791.3,2.80346146]
[1743876499824,0.7818,1791.4,1791.3,2.80344027]
[1743876501517,0.7818,1791.4,1791.3,2.80337992]
[1743876503326,0.7818,1791.4,1791.3,2.80329297]
[1743876503536,2.2425,1791.4,1791.3,2.80329297]
[1743876503830,2.2425,1791.4,1791.3,2.27036794]
[1743876505122,2.2425,1791.4,1791.3,1.5131]
[1743876505328,2.2425,1791.4,1791.3,2.2703506]
[1743876505926,2.2425,1791.4,1791.3,2.80338941]
[1743876506328,2.2425,1791.4,1791.3,2.2703506]
[1743876508415,2.2425,1791.4,1791.3,0.7572506]
[1743876509124,0.78185,1791.3,1791.2,0.00838714]
[1743876509323,6.21585,1791.3,1791.2,0.76607954]
[1743876510716,12.25185,1791.3,1791.2,0.7657391]
[1743876511225,12.25185,1791.3,1791.2,0.00838714]
[1743876511830,12.25185,1791.3,1791.2,7.14e-06]
[1743876513715,9.75185,1791.3,1791.2,7.14e-06]
[1743876522635,9.75185,1791.3,1791.2,1.50385842]
[1743876522837,9.75185,1791.3,1791.2,7.14e-06]
[1743876531337,9.75185,1791.3,1791.2,0.75705897]
[1743876536337,9.75185,1791.3,1791.2,7.14e-06]
[1743876551352,9.75185,1791.3,1791.2,0.75788071]
[1743876554253,9.75185,1791.3,1791.2,1.50448071]
[1743876555656,9.75185,1791.3,1791.2,1.50456876]
[1743876557553,9.75185,1791.3,1791.2,1.50459424]
[1743876562156,7.52565,1791.3,1791.2,1.50459424]
[1743876562353,7.52565,1791.3,1791.2,2.25389424]
[1743876566555,7.52565,1791.3,1791.2,2.25408825]
[1743876567354,7.52565,1791.3,1791.2,2.25400326]
[1743876567757,7.52565,1791.3,1791.2,1.49590714]
[1743876568051,7.52565,1791.3,1791.2,0.75811484]
[1743876568258,8.26835,1791.3,1791.2,0.75815524]
[1743876569761,8.26835,1791.3,1791.2,0.7581462]
[1743876570155,8.26835,1791.3,1791.2,2.1504462]
[1743876575059,8.26835,1791.3,1791.2,2.15055172]
[1743876576869,8.26835,1791.3,1791.2,2.15063185]
[1743876577068,5.06055,1791.3,1791.2,2.15063185]
[1743876577370,8.26835,1791.3,1791.2,2.15063185]
[1743876578173,5.06055,1791.3,1791.2,2.15063185]
[1743876578368,8.26835,1791.3,1791.2,2.15063185]
[1743876578875,8.26835,1791.3,1791.2,2.15073312]
[1743876579472,4.73235,1791.3,1791.2,2.15073312]
[1743876579769,7.51365,1791.3,1791.2,2.92043312]
[1743876580465,7.51365,1791.3,1791.2,2.16200714]
[1743876580665,7.51365,1791.3,1791.2,2.92046138]
[1743876582066,8.28525,1791.3,1791.2,2.92046138]
[1743876583173,5.07745,1791.3,1791.2,2.92046138]
[1743876583373,8.28525,1791.3,1791.2,2.92046138]
[1743876583574,4.76125,1791.3,1791.2,2.92046138]
[1743876583974,6.23985,1791.3,1791.2,2.92046138]
[1743876584175,6.23985,1791.3,1791.2,2.92045765]
[1743876585074,6.23985,1791.3,1791.2,0.75845765]
[1743876589376,6.23985,1791.3,1791.2,0.75848678]
[1743876589571,6.23985,1791.3,1791.2,7.14e-06]
[1743876589775,6.23985,1791.3,1791.2,0.75848654]
[1743876593569,6.23985,1791.3,1791.2,2.89568654]
[1743876595073,6.23985,1791.3,1791.2,2.89597979]
[1743876598493,6.23985,1791.3,1791.2,0.75877979]
[1743876598988,0.78202,1790.9,1790.8,2.9619]
[1743876599189,0.78202,1790.9,1790.8,3.4960474]
[1743876601788,0.78202,1790.9,1790.8,3.49586627]
[1743876606199,3.2078,1791.3,1790.8,5.99586627]
[1743876606500,0.78198,1791.0,1790.9,1.93756627]
[1743876606696,0.78198,1791.0,1790.9,5.45656627]
[1743876606900,0.78198,1791.0,1790.9,7.95656627]
[1743876607403,0.78198,1791.0,1790.9,7.9561181]
[1743876608601,0.78198,1791.0,1790.9,5.4561181]
[1743876608802,0.78198,1791.0,1790.9,7.9561181]
[1743876609302,0.78198,1791.0,1790.9,1.9371181]
[1743876609900,2.25288,1791.0,1790.9,1.9371181]
[1743876610803,2.25288,1791.0,1790.9,1.4036]
[1743876611109,2.25288,1791.0,1790.9,2.68956081]
[1743876614500,2.25288,1791.0,1790.9,2.689574]
[1743876614700,2.25288,1791.0,1790.9,2.68956969]
[1743876616608,2.25288,1791.0,1790.9,2.6895191]
[1743876625910,2.25288,1791.0,1790.9,2.69015416]
[1743876628314,2.25288,1791.0,1790.9,2.15633734]
[1743876628615,2.25288,1791.0,1790.9,2.69017754]
[1743876629510,2.25288,1791.0,1790.9,2.69027089]
[1743876635022,2.25288,1791.0,1790.9,2.69045252]
[1743876637022,2.25288,1791.0,1790.9,2.69061253]
[1743876638624,2.25288,1791.0,1790.9,2.69081852]
[1743876639528,2.25288,1791.0,1790.9,2.69122735]
[1743876640423,2.25288,1791.0,1790.9,1.4036]
[1743876640628,2.25288,1791.0,1790.9,2.6912755]
[1743876640930,2.25288,1791.0,1790.9,1.93788186]
[1743876641126,2.25288,1791.0,1790.9,2.6913151]
[1743876642026,2.25288,1791.0,1790.9,2.6913868]
[1743876644131,2.26451883,1791.0,1790.9,2.69141146]
[1743876649530,2.26451883,1791.0,1790.9,1.9380941]
[1743876649835,2.26451883,1791.0,1790.9,2.69178645]
[1743876650841,2.26451883,1791.0,1790.9,2.69179845]
[1743876651440,2.26451883,1791.0,1790.9,2.69182065]
[1743876652738,2.26451883,1791.0,1790.9,1.28822065]
[1743876653431,2.26451883,1791.0,1790.9,1.28822213]
[1743876656241,2.26451883,1791.0,1790.9,0.75371224]
[1743876658143,0.78207,1790.8,1790.7,1.55078714]
[1743876658343,0.78207,1790.8,1790.7,2.83819226]
[1743876658743,2.21687,1790.8,1790.7,2.83819226]
[1743876659239,2.22850883,1790.8,1790.7,2.83819226]
[1743876660243,0.79370883,1790.8,1790.7,2.83819226]
[1743876661546,0.01163883,1790.8,1790.7,6.82810226]
[1743876661746,2.65408,1791.2,1790.8,0.78206]
[1743876662044,0.78189,1791.2,1791.1,3.2078]
[1743876662245,2.9206,1791.6,1791.2,0.78187]
[1743876662550,0.78184,1791.4,1791.3,5.26362529]
[1743876662751,0.78184,1791.4,1791.3,6.66192529]
[1743876666657,0.78184,1791.4,1791.3,6.6601573]
[1743876667457,2.28934,1791.4,1791.3,6.65763628]
[1743876667953,2.28934,1791.4,1791.3,3.44983628]
[1743876668553,0.78184,1791.4,1791.3,3.44983628]
[1743876669154,0.78184,1791.4,1791.3,3.44946559]
[1743876669561,0.78184,1791.4,1791.3,4.23131559]
[1743876669760,0.78179,1791.5,1791.3,7.43911559]
[1743876669959,0.78179,1791.5,1791.4,2.21933056]
[1743876673656,0.78179,1791.5,1791.4,2.21876049]
[1743876674662,0.78179,1791.5,1791.4,2.21868805]
[1743876678268,0.78179,1791.5,1791.4,2.2185785]
[1743876681966,0.78179,1791.5,1791.4,2.2187568]
[1743876682264,0.78179,1791.5,1791.4,0.7492568]
[1743876683066,0.78189,1791.2,1791.1,3.51]
[1743876683371,0.78189,1791.2,1791.1,1.28120811]
[1743876683668,0.78193,1791.1,1791.0,43.4056]
[1743876683868,0.78193,1791.1,1791.0,44.68697991]
[1743876684368,0.78193,1791.1,1791.0,42.65451381]
[1743876685170,2.21153,1791.1,1791.0,42.65451381]
[1743876685471,2.21153,1791.1,1791.0,39.44671381]
[1743876686073,2.21153,1791.1,1791.0,40.89881381]
[1743876686272,2.21153,1791.1,1791.0,37.38781381]
[1743876688173,2.21153,1791.1,1791.0,37.92027734]
[1743876688374,2.21153,1791.1,1791.0,37.92024242]
[1743876688576,2.21153,1791.1,1791.0,37.92127107]
[1743876692674,2.21153,1791.1,1791.0,36.6381]
[1743876692876,2.21153,1791.1,1791.0,37.92184389]
[1743876693376,2.21153,1791.1,1791.0,37.92184794]
[1743876694579,2.21153,1791.1,1791.0,37.92166412]
[1743876694872,0.78193,1791.1,1791.0,37.92166412]
[1743876695377,0.78193,1791.1,1791.0,2.73566412]
[1743876697182,0.78193,1791.1,1791.0,2.73530973]
[1743876699481,0.78193,1791.1,1791.0,2.73522563]
[1743876701778,0.78193,1791.1,1791.0,1.4521]
[1743876701986,0.78193,1791.1,1791.0,2.73533956]
[1743876703686,0.78193,1791.1,1791.0,2.73554489]
[1743876703883,0.78193,1791.1,1791.0,3.48954489]
[1743876705684,0.78193,1791.1,1791.0,3.48973082]
[1743876707291,0.78193,1791.1,1791.0,3.49010846]
[1743876709084,0.78193,1791.1,1791.0,2.2061]
[1743876709290,0.78193,1791.1,1791.0,3.49040672]
[1743876709495,0.6948,1791.3,1791.2,0.78189]
[1743876709789,0.6948,1791.3,1791.2,5.27399672]
[1743876710390,1.47665,1791.3,1791.2,6.68900672]
[1743876710689,1.47665,1791.3,1791.2,3.48120672]
[1743876710989,1.47665,1791.3,1791.2,3.48149481]
[1743876711788,1.47665,1791.3,1791.2,1.28459481]
[1743876711986,2.17405,1791.3,1791.2,1.28459481]
[1743876712791,2.17405,1791.3,1791.2,1.28516224]
[1743876715493,2.17405,1791.3,1791.2,1.28518176]
[1743876716389,2.17405,1791.3,1791.2,1.28517555]
[1743876718392,1.3922,1791.3,1791.2,1.28558177]
[1743876718697,2.17405,1791.3,1791.2,1.28558177]
[1743876718995,3.65285,1791.3,1791.2,3.49288177]
[1743876719496,2.26065,1791.3,1791.2,3.49288177]
[1743876720097,2.26065,1791.3,1791.2,3.49271259]
[1743876720293,2.26065,1791.3,1791.2,4.27460259]
[1743876720798,2.26065,1791.3,1791.2,3.49271259]
[1743876721397,1.4788,1791.3,1791.2,4.27460259]
[1743876723201,1.4788,1791.3,1791.2,4.27429624]
[1743876724099,2.26065,1791.3,1791.2,4.27429624]
[1743876724299,1.4788,1791.3,1791.2,4.27429624]
[1743876726204,2.26065,1791.3,1791.2,4.27429624]
[1743876727090,1.4788,1791.3,1791.2,4.27409419]
[1743876728498,0.7537,1791.4,1791.3,0.78185]
[1743876728700,3.05417,1791.5,1791.4,0.7818]
[1743876728900,3.05417,1791.5,1791.4,2.78743433]
[1743876729103,3.05417,1791.5,1791.4,4.30103433]
[1743876729509,2.2724,1791.5,1791.4,4.30103433]
[1743876730511,2.29656,1791.5,1791.4,4.30103433]
[1743876730810,2.29656,1791.5,1791.4,3.51920883]
[1743876731415,2.29656,1791.5,1791.4,4.30100883]
[1743876731913,2.29656,1791.5,1791.4,3.51920883]
[1743876733017,2.29656,1791.5,1791.4,4.30100883]
[1743876734319,2.29656,1791.5,1791.4,4.30088929]
[1743876736020,2.29656,1791.5,1791.4,4.30084797]
[1743876736920,1.5148,1791.5,1791.4,4.30084797]
[1743876737120,2.29656,1791.5,1791.4,4.30084797]
[1743876737620,0.79008,1791.7,1791.5,0.78173]
[1743876737822,2.24728,1791.7,1791.6,0.75155564]
[1743876740822,2.24728,1791.7,1791.6,0.75120661]
[1743876742521,0.78198,1791.0,1790.9,3.2078]
[1743876742827,0.78207,1790.8,1790.7,0.00838714]
[1743876743020,0.78207,1790.8,1790.7,0.54163538]
[1743876743421,2.29897,1790.8,1790.7,0.54163538]
[1743876743719,2.29897,1790.8,1790.7,0.00838714]
[1743876744628,1.5169,1790.8,1790.7,0.79049714]
[1743876744826,1.5169,1790.8,1790.7,2.25479714]
[1743876747123,3.2078,1791.1,1790.9,0.78199]
[1743876747428,1.5091,1791.1,1791.0,0.78197]
[1743876747836,2.29103,1791.1,1790.9,0.78199]
[1743876748025,2.29103,1791.1,1791.0,1.4722]
[1743876749128,1.5091,1791.1,1791.0,2.25418]
[1743876751029,0.7652,1791.4,1791.0,8.208]
[1743876751329,1.54703,1791.4,1791.2,0.78187]
[1743876751628,1.3948,1791.3,1791.2,0.78187]
[1743876753933,1.3948,1791.3,1791.2,1.54137]
[1743876754633,1.47745,1791.6,1791.4,0.78179]
[1743876754932,1.5121,1791.5,1791.4,0.78179]
[1743876755231,1.5121,1791.5,1791.4,2.26819]
[1743876755838,2.29386,1791.5,1791.4,2.26819]
[1743876756131,1.5121,1791.5,1791.4,2.26819]
[1743876757935,2.29386,1791.5,1791.4,2.26819]
[1743876758335,2.29386,1791.5,1791.4,3.00519248]
[1743876759235,2.29386,1791.5,1791.4,3.00517625]
[1743876759534,2.29386,1791.5,1791.4,2.22338625]
[1743876759930,2.29386,1791.5,1791.4,0.73698625]
[1743876760125,2.29386,1791.5,1791.3,5.07652]
[1743876760330,1.4002,1791.4,1791.3,6.56302]
[1743876760629,1.4002,1791.4,1791.3,7.30002289]
[1743876763237,1.4002,1791.4,1791.3,7.83143605]
[1743876763642,1.4002,1791.4,1791.3,7.30002289]
[1743876764439,1.4002,1791.4,1791.3,7.8314372]
[1743876764740,1.4002,1791.4,1791.3,7.83143716]
[1743876764939,1.4002,1791.4,1791.3,7.30002289]
[1743876765443,1.4002,1791.4,1791.3,7.83143618]
[1743876765643,0.6957,1791.6,1791.5,0.78176]
[1743876766142,0.6957,1791.6,1791.5,3.03166]
[1743876766339,2.88862,1791.6,1791.5,3.03166]
[1743876767143,2.88862,1791.6,1791.5,2.2499]
[1743876768343,2.88862,1791.6,1791.4,3.98957]
[1743876768542,2.2474,1791.5,1791.4,3.98957]
[1743876768744,2.2474,1791.5,1791.4,4.72647869]
[1743876771845,2.2474,1791.5,1791.4,4.7265869]
[1743876773351,3.02916,1791.5,1791.4,4.7265869]
[1743876773553,2.2474,1791.5,1791.4,4.7265869]
[1743876773752,2.2474,1791.5,1791.4,1.5190002]
[1743876774251,2.2474,1791.5,1791.4,2.9570002]
[1743876774452,2.2474,1791.5,1791.4,3.6576002]
[1743876774953,0.00838,1791.7,1791.6,0.78172]
[1743876775151,0.79008,1791.7,1791.5,2.21973]
[1743876775349,2.24658,1791.7,1791.5,2.21973]
[1743876775550,0.78172,1791.6,1791.4,1.48237]
[1743876775749,2.23822,1791.6,1791.5,0.73764578]
[1743876776548,2.23822,1791.6,1791.5,1.51940578]
[1743876777750,2.23822,1791.6,1791.5,0.73764578]
[1743876778754,2.23822,1791.6,1791.5,1.51940578]
[1743876779157,2.23822,1791.6,1791.5,1.27040247]
[1743876781454,2.23822,1791.6,1791.5,2.05216247]
[1743876781660,1.4565,1791.6,1791.5,2.05216247]
[1743876781959,2.23822,1791.6,1791.5,3.58906247]
[1743876782657,1.4565,1791.6,1791.5,3.58906247]
[1743876783058,1.4565,1791.6,1791.5,3.58930094]
[1743876784060,1.4565,1791.6,1791.5,6.79718004]
[1743876787657,1.4565,1791.6,1791.5,6.79726875]
[1743876789861,2.23822,1791.6,1791.5,6.79726875]
[1743876790763,1.4565,1791.6,1791.5,6.79726875]
[1743876791268,1.4565,1791.6,1791.5,6.79732489]
[1743876792566,0.00838,1791.7,1791.6,0.78172]
[1743876792868,0.00838,1791.7,1791.6,2.05258489]
[1743876793063,0.00838,1791.7,1791.6,7.72818489]
[1743876796572,0.00838,1791.7,1791.6,7.73580225]
[1743876798575,0.00838,1791.7,1791.6,10.23499244]
[1743876798770,2.1361,1792.2,1792.1,0.7815]
[1743876798975,1.4416,1792.4,1792.3,0.78141]
[1743876799179,1.4416,1792.4,1792.3,1.5270376]
[1743876799675,2.8586,1792.4,1792.3,1.5270376]
[1743876799873,2.8586,1792.4,1792.3,2.9484376]
[1743876800067,3.63997,1792.4,1792.3,2.1670276]
[1743876800278,3.63997,1792.4,1792.3,2.16587759]
[1743876801180,2.8586,1792.4,1792.3,2.94728759]
[1743876801677,0.00838714,1792.5,1792.3,8.89867759]
[1743876801878,2.17487,1792.4,1792.3,8.1542]
[1743876802077,3.63197,1792.4,1792.3,8.8978013]
[1743876802275,3.63197,1792.4,1792.3,3.9514013]
[1743876803077,3.63197,1792.4,1792.3,3.2078]
[1743876814276,3.63197,1792.4,1792.3,3.98921]
[1743876814482,3.63197,1792.4,1792.3,5.50821]
[1743876814681,3.63197,1792.4,1792.3,4.7268]
[1743876815874,0.78141,1792.3,1792.2,0.00838714]
[1743876816079,2.29581,1792.3,1792.2,0.75121656]
[1743876816583,2.29581,1792.3,1792.2,0.75136995]
[1743876817781,3.2078,1792.9,1792.2,9.16936995]
[1743876818083,0.78109,1793.1,1792.9,0.78115]
[1743876818287,0.78105,1793.2,1792.9,3.591]
[1743876818486,3.00055,1793.2,1793.0,1.5]
[1743876818986,1.4485,1793.1,1793.0,1.5]
[1743876819484,1.4485,1793.1,1793.0,2.28111]
[1743876821386,1.4485,1793.1,1793.0,1.5]
[1743876822686,2.22956,1793.1,1792.9,5.89614]
[1743876822888,2.99016,1793.1,1792.9,5.89614]
[1743876823189,1.4167,1793.0,1792.9,5.89614]
[1743876823491,1.4167,1793.0,1792.9,8.11750988]
[1743876823791,1.55202,1793.2,1793.0,0.78111]
[1743876823989,3.72932,1793.2,1793.0,2.26091]
[1743876825290,0.78106,1793.1,1793.0,1.4798]
[1743876825589,2.19776,1793.1,1793.0,1.4798]
[1743876825989,1.4167,1793.1,1793.0,2.26091]
[1743876826188,1.4167,1793.1,1793.0,1.4798]
[1743876826391,1.4167,1793.1,1793.0,2.26091]
[1743876826691,1.4167,1793.1,1793.0,1.4798]
[1743876826885,2.19776,1793.1,1793.0,1.4798]
[1743876829891,0.78106,1793.1,1793.0,1.4798]
[1743876830192,0.78105,1793.2,1793.1,0.78106]
[1743876830485,5.1597,1793.8,1793.0,15.05835]
[1743876830690,0.78084,1793.7,1793.3,3.2078]
[1743876830994,0.78084,1793.6,1793.4,5.8393]
[1743876831194,0.78089,1793.5,1793.4,6.4502]
[1743876831388,5.49609,1793.5,1793.4,2.8562]
[1743876831594,2.28829,1793.5,1793.4,6.4512]
[1743876832293,2.28829,1793.5,1793.4,2.8562]
[1743876832795,1.5074,1793.5,1793.2,0.0083633]
[1743876833094,0.78098,1793.3,1793.2,5.0146633]
[1743876833687,2.27088,1793.3,1793.2,5.0146633]
[1743876833890,1.4899,1793.3,1793.2,5.7956833]
[1743876834888,2.27088,1793.3,1793.2,5.0146633]
[1743876836699,2.27088,1793.3,1793.2,0.0083633]
[1743876836897,2.98368,1793.3,1793.2,0.0083633]
[1743876837704,0.78098,1793.3,1793.2,0.0083633]
[1743876837903,0.78098,1793.3,1793.2,1.5360633]
[1743876838201,2.19088,1793.3,1793.2,1.5360633]
[1743876838605,2.90868,1793.3,1793.2,1.5360633]
[1743876839104,0.78098,1793.3,1793.2,1.5360633]
[1743876840504,2.27078,1793.3,1793.2,1.5360633]
[1743876840811,1.51636,1793.4,1793.2,2.3170833]
[1743876841015,1.51637,1793.4,1793.2,2.3170833]
[1743876841214,0.78097,1793.4,1793.3,1.5332]
[1743876841415,2.30387,1793.4,1793.3,1.5332]
[1743876844215,2.30387,1793.4,1793.2,0.7893733]
[1743876844513,0.78098,1793.3,1793.2,1.5494633]
[1743876844715,2.95898,1793.3,1793.2,2.29140152]
[1743876845716,2.95898,1793.3,1793.2,0.75030152]
[1743876846218,2.178,1793.6,1793.4,0.78092]
[1743876846411,2.95884,1793.6,1793.5,2.2428]
[1743876847918,2.95884,1793.6,1793.5,2.98643415]
[1743876848115,2.95884,1793.6,1793.5,2.2428]
[1743876848421,2.95884,1793.6,1793.5,2.98649605]
[1743876849924,0.78084,1793.6,1793.5,3.76738605]
[1743876851123,0.78084,1793.6,1793.5,4.29779186]
[1743876851313,5.38823,1793.7,1793.5,4.29779186]
[1743876851519,5.38823,1793.7,1793.6,2.13739605]
[1743876851920,0.78079,1793.8,1793.6,2.66762518]
[1743876852115,0.78079,1793.8,1793.7,2.84219605]